fUSD/lending_fUSD_20240902
["ID","MTS","AMOUNT","RATE_DAILY","PERIOD"]
[336897612,1725237053187,-1197.02,0.00022477,2]
[336897613,1725237053197,-500.0,0.00022477,2]
[336897614,1725237053207,-856.09,0.00022477,2]
[336897615,1725237053217,-582.01,0.00022477,2]
[336897616,1725237053226,-500.0,0.00022477,2]
[336897617,1725237053236,-1514.96,0.00022477,2]
[336897618,1725237053246,-608.722382,0.00022477,2]
[336897619,1725237053255,-561.44,0.00022477,2]
[336897620,1725237053265,-500.0,0.00022477,2]
[336897621,1725237053274,-500.0,0.00022477,2]
[336897622,1725237053283,-1133.78,0.00022477,2]
[336897623,1725237053293,-500.0,0.00022477,2]
[336897624,1725237053303,-833.81,0.00022477,2]
[336897625,1725237053312,-151.0,0.00022477,7]
[336897626,1725237053321,-500.0,0.00022477,2]
[336897627,1725237053331,-2109.51,0.00022477,2]
[336897628,1725237053340,-2061.89,0.00022477,2]
[336897629,1725237053350,-500.0,0.00022477,2]
[336897630,1725237053359,-500.0,0.00022477,2]
[336897631,1725237053368,-1147.44,0.00022477,2]
[336897632,1725237053377,-500.0,0.00022477,2]
[336897633,1725237053386,-500.0,0.00022477,2]
[336897634,1725237053396,-505.47381828,0.00022477,2]
[336897635,1725237053405,-826.35,0.00022477,2]
[336897636,1725237053415,-802.29,0.00022477,2]
[336897637,1725237053425,-500.0,0.00022477,2]
[336897638,1725237053434,-500.0,0.00022477,2]
[336897639,1725237053443,-589.63,0.00022477,2]
[336897640,1725237053452,-500.0,0.00022477,2]
[336897641,1725237053462,-500.0,0.00022477,2]
[336897642,1725237053472,-500.0,0.00022477,2]
[336897643,1725237053481,-500.0,0.00022477,2]
[336897644,1725237053490,-1176.95,0.00022477,2]
[336897645,1725237053499,-500.0,0.00022477,2]
[336897646,1725237053509,-827.19,0.00022477,2]
[336897647,1725237053518,-1465.17,0.00022477,2]
[336897648,1725237053527,-556.1,0.00022477,2]
[336897649,1725237053536,-500.0,0.00022477,2]
[336897650,1725237053545,-564.27,0.00022477,2]
[336897651,1725237053554,-500.0,0.00022477,2]
[336897652,1725237053564,-1421.12,0.00022477,2]
[336897653,1725237053573,-500.0,0.00022477,2]
[336897654,1725237053586,-362.8,0.00022477,2]
[336897655,1725237053595,-500.0,0.00022477,2]
[336897656,1725237053604,-500.0,0.00022477,2]
[336897657,1725237053613,-1400.6,0.00022477,2]
[336897658,1725237053623,-500.0,0.00022477,2]
[336897659,1725237053632,-2196.12,0.00022477,2]
[336897660,1725237053641,-1281.09,0.00022477,2]
[336897661,1725237053650,-500.0,0.00022477,2]
[336897662,1725237053659,-501.0,0.00022477,2]
[336897663,1725237053669,-530.53,0.00022477,2]
[336897664,1725237053678,-500.0,0.00022477,2]
[336897665,1725237053687,-500.0,0.00022477,2]
[336897666,1725237053696,-729.7,0.00022477,2]
[336897667,1725237053705,-1970.35,0.00022477,2]
[336897668,1725237053714,-500.0,0.00022477,2]
[336897669,1725237053723,-500.0,0.00022477,2]
[336897670,1725237053732,-500.0,0.00022477,2]
[336897671,1725237053741,-647.81,0.00022477,2]
[336897672,1725237053750,-788.54,0.00022477,2]
[336897673,1725237053760,-1719.37,0.00022477,2]
[336897674,1725237053771,-500.0,0.00022477,2]
[336897675,1725237053781,-500.0,0.00022477,2]
[336897676,1725237053791,-1356.17,0.00022477,2]
[336897677,1725237053801,-500.0,0.00022477,2]
[336897678,1725237053811,-500.0,0.00022477,2]
[336897679,1725237053820,-500.0,0.00022477,2]
[336897680,1725237053833,-1854.13,0.00022477,2]
[336897681,1725237053842,-500.0,0.00022477,2]
[336897682,1725237053852,-500.0,0.00022477,2]
[336897683,1725237053861,-500.0,0.00022477,2]
[336897684,1725237053871,-500.0,0.00022477,2]
[336897685,1725237053880,-1000.0,0.00022477,2]
[336897686,1725237053890,-500.0,0.00022477,2]
[336897687,1725237053899,-500.0,0.00022477,2]
[336897688,1725237053908,-714.76,0.00022477,2]
[336897689,1725237053916,-500.0,0.00022477,2]
[336897690,1725237053926,-500.0,0.00022477,2]
[336897691,1725237053935,-510.24,0.00022477,2]
[336897692,1725237053945,-500.0,0.00022477,2]
[336897693,1725237053954,-686.57,0.00022477,2]
[336897694,1725237053964,-500.0,0.00022477,2]
[336897695,1725237053975,-500.0,0.00022477,2]
[336897696,1725237053984,-500.0,0.00022477,2]
[336897697,1725237053994,-556.62,0.00022477,2]
[336897698,1725237054005,-1662.03,0.00022477,2]
[336897699,1725237054014,-921.39,0.00022477,2]
[336897700,1725237054023,-500.0,0.00022477,2]
[336897701,1725237054033,-500.0,0.00022477,2]
[336897702,1725237054042,-151.0,0.00022477,7]
[336897703,1725237054052,-1026.07,0.00022477,2]
[336897704,1725237054062,-500.0,0.00022477,2]
[336897705,1725237054071,-500.0,0.00022477,2]
[336897706,1725237054084,-536.43,0.00022477,2]
[336897707,1725237054093,-700.77,0.00022477,2]
[336897708,1725237054103,-1520.7,0.00022477,2]
[336897709,1725237054113,-500.0,0.00022477,2]
[336897710,1725237054123,-500.0,0.00022477,2]
[336897711,1725237054132,-1088.88,0.00022477,2]
[336897712,1725237054142,-500.0,0.00022477,2]
[336897713,1725237054151,-763.35,0.00022477,2]
[336897714,1725237054163,-508.81979372,0.00022477,2]
[336897715,1725237054178,-500.0,0.00022477,2]
[336897716,1725237054188,-500.0,0.00022477,2]
[336897717,1725237054197,-500.0,0.00022477,2]
[336897718,1725237054207,-500.0,0.00022477,2]
[336897719,1725237054216,-1266.42,0.00022477,2]
[336897720,1725237054227,-150.0,0.00022477,2]
[336897721,1725237054238,-500.0,0.00022477,2]
[336897722,1725237054248,-499.4253677,0.00022477,2]
[336897723,1725237054259,-590.18,0.00022477,2]
[336897724,1725237054269,-500.0,0.00022477,2]
[336897725,1725237054278,-533.39014063,0.00022477,2]
[336897726,1725237054287,-4541.08,0.00022477,2]
[336897727,1725237054296,-500.0,0.00022477,2]
[336897728,1725237054305,-500.0,0.00022477,2]
[336897729,1725237054314,-2714.84,0.00022477,2]
[336897730,1725237054326,-500.0,0.00022477,2]
[336897731,1725237054337,-500.0,0.00022477,2]
[336897732,1725237054346,-500.0,0.00022477,2]
[336897733,1725237054355,-500.0,0.00022477,2]
[336897734,1725237054364,-491.46133578,0.00022477,3]
[336897735,1725237054375,-500.0,0.00022477,2]
[336897736,1725237054385,-500.0,0.00022477,2]
[336897737,1725237054394,-151.0,0.00022477,7]
[336897738,1725237054403,-151.0,0.00022477,7]
[336897739,1725237054413,-500.0,0.00022477,2]
[336897740,1725237054422,-500.0,0.00022477,2]
[336897741,1725237054431,-500.0,0.00022477,2]
[336897742,1725237054441,-1084.2,0.00022477,2]
[336897743,1725237054450,-500.0,0.00022477,2]
[336897744,1725237054459,-733.06,0.00022477,2]
[336897745,1725237054470,-508.77156501,0.00022477,2]
[336897746,1725237054479,-515.81907949,0.00022477,2]
[336897747,1725237054489,-2013.06,0.00022477,2]
[336897748,1725237054500,-500.0,0.00022477,2]
[336897749,1725237054510,-20000.0,0.00022477,2]
[336897750,1725237054522,-500.0,0.00022477,2]
[336897751,1725237054532,-500.0,0.00022477,2]
[336897752,1725237054543,-500.0,0.00022477,2]
[336897753,1725237054553,-1071.88,0.00022477,2]
[336897754,1725237054563,-500.0,0.00022477,2]
[336897755,1725237054573,-1284.07,0.00022477,2]
[336897756,1725237054584,-681.47,0.00022477,2]
[336897757,1725237054593,-1295.63,0.00022477,2]
[336897758,1725237054602,-1641.36,0.00022477,2]
[336897759,1725237054611,-1780.09,0.00022477,2]
[336897760,1725237054620,-500.0,0.00022477,2]
[336897761,1725237054629,-500.0,0.00022477,2]
[336897762,1725237054640,-1133.33,0.00022477,2]
[336897763,1725237054651,-500.0,0.00022477,2]
[336897764,1725237054661,-1635.1,0.00022477,2]
[336897765,1725237054671,-500.0,0.00022477,2]
[336897766,1725237054682,-500.0,0.00022477,2]
[336897767,1725237054692,-1834.05,0.00022477,2]
[336897768,1725237054704,-500.0,0.00022477,2]
[336897769,1725237054714,-500.0,0.00022477,2]
[336897770,1725237054724,-1739.22,0.00022477,2]
[336897771,1725237054734,-500.0,0.00022477,2]
[336897772,1725237054745,-1147.2,0.00022477,2]
[336897773,1725237054756,-500.0,0.00022477,2]
[336897774,1725237054766,-500.0,0.00022477,2]
[336897775,1725237054775,-744.79,0.00022477,2]
[336897776,1725237054784,-500.0,0.00022477,2]
[336897777,1725237054795,-796.93,0.00022477,2]
[336897778,1725237054804,-500.0,0.00022477,2]
[336897779,1725237054813,-500.0,0.00022477,2]
[336897780,1725237054823,-575.5026922,0.00022477,2]
[336897781,1725237054833,-500.0,0.00022477,2]
[336897782,1725237054844,-500.0,0.00022477,2]
[336897783,1725237054854,-500.0,0.00022477,2]
[336897784,1725237054862,-500.0,0.00022477,2]
[336897785,1725237054871,-1353.41,0.00022477,2]
[336897786,1725237054881,-500.0,0.00022477,2]
[336897787,1725237054890,-531.57,0.00022477,2]
[336897788,1725237054898,-500.0,0.00022477,2]
[336897789,1725237054907,-500.0,0.00022477,2]
[336897790,1725237054916,-500.0,0.00022477,2]
[336897791,1725237054925,-1509.86,0.00022477,2]
[336897792,1725237054935,-1060.54,0.00022477,2]
[336897793,1725237054945,-500.0,0.00022477,2]
[336897794,1725237054955,-1078.19,0.00022477,2]
[336897795,1725237054966,-940.68,0.00022477,2]
[336897796,1725237054976,-500.0,0.00022477,2]
[336897797,1725237054986,-500.0,0.00022477,2]
[336897798,1725237054996,-500.0,0.00022477,2]
[336897799,1725237055006,-500.0,0.00022477,2]
[336897800,1725237055015,-500.0,0.00022477,2]
[336897801,1725237055025,-663.01,0.00022477,2]
[336897802,1725237055034,-500.0,0.00022477,2]
[336897803,1725237055044,-792.02,0.00022477,2]
[336897804,1725237055053,-500.0,0.00022477,2]
[336897805,1725237055062,-500.0,0.00022477,2]
[336897806,1725237055073,-668.23,0.00022477,2]
[336897807,1725237055092,-500.0,0.00022477,2]
[336897808,1725237055101,-500.0,0.00022477,2]
[336897809,1725237055110,-500.0,0.00022477,2]
[336897810,1725237055119,-1253.92,0.00022477,2]
[336897811,1725237055128,-500.0,0.00022477,2]
[336897812,1725237055137,-500.0,0.00022477,2]
[336897813,1725237055147,-500.0,0.00022477,2]
[336897814,1725237055156,-500.0,0.00022477,2]
[336897815,1725237055166,-500.0,0.00022477,2]
[336897816,1725237055176,-1517.1,0.00022477,2]
[336897817,1725237055185,-500.0,0.00022477,2]
[336897818,1725237055194,-500.0,0.00022477,2]
[336897819,1725237055203,-500.0,0.00022477,2]
[336897820,1725237055213,-500.0,0.00022477,2]
[336897821,1725237055222,-1002.01,0.00022477,2]
[336897822,1725237055230,-1798.17,0.00022477,2]
[336897823,1725237055240,-500.0,0.00022477,2]
[336897824,1725237055249,-917.78,0.00022477,2]
[336897825,1725237055259,-500.0,0.00022477,2]
[336897826,1725237055268,-500.0,0.00022477,2]
[336897827,1725237055279,-505.44,0.00022477,2]
[336897828,1725237055288,-500.0,0.00022477,2]
[336897829,1725237055297,-500.0,0.00022477,2]
[336897830,1725237055306,-500.0,0.00022477,2]
[336897831,1725237055316,-500.0,0.00022477,2]
[336897832,1725237055325,-1187.16,0.00022477,2]
[336897833,1725237055337,-290.20957541,0.00022477,2]
[336897834,1725237055346,-2120.73,0.00022477,2]
[336897835,1725237055355,-1061.53,0.00022477,2]
[336897836,1725237055364,-500.0,0.00022477,2]
[336897837,1725237055373,-500.0,0.00022477,2]
[336897838,1725237055382,-509.71842104,0.00022477,2]
[336897839,1725237055391,-507.47579398,0.00022477,2]
[336897840,1725237055401,-1422.34,0.00022477,2]
[336897841,1725237055410,-500.0,0.00022477,2]
[336897842,1725237055419,-500.0,0.00022477,2]
[336897843,1725237055429,-500.0,0.00022477,2]
[336897844,1725237055438,-500.0,0.00022477,2]
[336897845,1725237055447,-601.9,0.00022477,2]
[336897846,1725237055456,-661.18,0.00022477,2]
[336897847,1725237055465,-500.0,0.00022477,2]
[336897848,1725237055474,-500.0,0.00022477,2]
[336897849,1725237055483,-500.0,0.00022477,2]
[336897850,1725237055492,-500.0,0.00022477,2]
[336897851,1725237055501,-600.0,0.00022477,2]
[336897852,1725237055511,-500.0,0.00022477,2]
[336897853,1725237055520,-687.69,0.00022477,2]
[336897854,1725237055529,-500.0,0.00022477,2]
[336897855,1725237055539,-835.81,0.00022477,2]
[336897856,1725237055548,-1360.75,0.00022477,2]
[336897857,1725237055557,-500.0,0.00022477,2]
[336897858,1725237055566,-500.0,0.00022477,2]
[336897859,1725237055576,-500.0,0.00022477,2]
[336897860,1725237055586,-500.0,0.00022477,2]
[336897861,1725237055595,-2435.12,0.00022477,2]
[336897862,1725237055605,-500.0,0.00022477,2]
[336897863,1725237055614,-500.0,0.00022477,2]
[336897864,1725237055623,-500.0,0.00022477,2]
[336897865,1725237055632,-500.0,0.00022477,2]
[336897866,1725237055641,-500.0,0.00022477,2]
[336897867,1725237055650,-500.0,0.00022477,2]
[336897868,1725237055659,-542.17,0.00022477,2]
[336897869,1725237055668,-500.0,0.00022477,2]
[336897870,1725237055677,-500.0,0.00022477,2]
[336897871,1725237055686,-1021.24,0.00022477,2]
[336897872,1725237055695,-500.0,0.00022477,2]
[336897873,1725237055703,-500.0,0.00022477,2]
[336897874,1725237055713,-500.0,0.00022477,2]
[336897875,1725237055722,-500.0,0.00022477,2]
[336897876,1725237055731,-1465.63,0.00022477,2]
[336897877,1725237055744,-1299.93,0.00022477,2]
[336897878,1725237055753,-566.76,0.00022477,2]
[336897879,1725237055762,-630.24,0.00022477,2]
[336897880,1725237055771,-500.0,0.00022477,2]
[336897881,1725237055780,-500.0,0.00022477,2]
[336897882,1725237055789,-500.0,0.00022477,2]
[336897883,1725237055798,-637.45,0.00022477,2]
[336897884,1725237055807,-500.0,0.00022477,2]
[336897885,1725237055816,-500.0,0.00022477,2]
[336897886,1725237055825,-500.0,0.00022477,2]
[336897887,1725237055835,-500.0,0.00022477,2]
[336897888,1725237055843,-500.0,0.00022477,2]
[336897889,1725237055852,-1359.75,0.00022477,2]
[336897890,1725237055865,-500.0,0.00022477,2]
[336897891,1725237055874,-657.25,0.00022477,2]
[336897892,1725237055883,-500.0,0.00022477,2]
[336897893,1725237055892,-500.0,0.00022477,2]
[336897894,1725237055900,-500.0,0.00022477,2]
[336897895,1725237055910,-500.0,0.00022477,2]
[336897896,1725237055919,-500.0,0.00022477,2]
[336897897,1725237055928,-500.0,0.00022477,2]
[336897898,1725237055937,-500.0,0.00022477,2]
[336897899,1725237055946,-500.0,0.00022477,2]
[336897900,1725237055955,-909.22,0.00022477,2]
[336897901,1725237055964,-523.13,0.00022477,2]
[336897902,1725237055974,-500.0,0.00022477,2]
[336897903,1725237055983,-1024.46,0.00022477,2]
[336897904,1725237055992,-356.15042959,0.00022477,2]
[336897905,1725237056002,-500.0,0.00022477,2]
[336897906,1725237056011,-1208.11,0.00022477,2]
[336897907,1725237056020,-500.0,0.00022477,2]
[336897908,1725237056216,-500.0,0.00022477,2]
[336897909,1725237056226,-1305.74,0.00022477,2]
[336897910,1725237056235,-500.0,0.00022477,2]
[336897911,1725237056246,-500.0,0.00022477,2]
[336897912,1725237056256,-500.0,0.00022477,2]
[336897913,1725237056265,-500.0,0.00022477,2]
[336897914,1725237056275,-1194.86,0.00022477,2]
[336897915,1725237056284,-486.40618111,0.00022477,2]
[336897916,1725237056294,-500.0,0.00022477,2]
[336897917,1725237056303,-151.0,0.00022477,2]
[336897918,1725237056312,-151.0,0.00022477,2]
[336897919,1725237056322,-500.0,0.00022477,2]
[336897920,1725237056331,-612.79652898,0.00022477,2]
[336897921,1725237056340,-500.0,0.00022477,2]
[336897922,1725237056350,-500.0,0.00022477,2]
[336897923,1725237056359,-500.0,0.00022477,2]
[336897924,1725237056368,-500.0,0.00022477,2]
[336897925,1725237056378,-500.0,0.00022477,2]
[336897926,1725237056387,-500.0,0.00022477,2]
[336897927,1725237056396,-500.0,0.00022477,2]
[336897928,1725237056405,-500.0,0.00022477,2]
[336897929,1725237056415,-500.0,0.00022477,2]
[336897930,1725237056424,-500.0,0.00022477,2]
[336897931,1725237056434,-877.46,0.00022477,2]
[336897932,1725237056443,-500.0,0.00022477,2]
[336897933,1725237056452,-500.0,0.00022477,2]
[336897934,1725237056462,-500.0,0.00022477,2]
[336897935,1725237056471,-500.0,0.00022477,2]
[336897936,1725237056480,-500.0,0.00022477,2]
[336897937,1725237056489,-500.0,0.00022477,2]
[336897938,1725237056498,-500.0,0.00022477,2]
[336897939,1725237056508,-500.0,0.00022477,2]
[336897940,1725237056517,-1830.73,0.00022477,2]
[336897941,1725237056526,-1400.31,0.00022477,2]
[336897942,1725237056535,-777.41,0.00022477,2]
[336897943,1725237056544,-548.89,0.00022477,2]
[336897944,1725237056556,-500.0,0.00022477,2]
[336897945,1725237056565,-341.86370075,0.00022477,2]
[336897946,1725237056574,-1336.61,0.00022477,2]
[336897947,1725237056584,-500.0,0.00022477,2]
[336897948,1725237056593,-2216.75,0.00022477,2]
[336897949,1725237056602,-2170.83,0.00022477,2]
[336897950,1725237056611,-2945.37,0.00022477,2]
[336897951,1725237056620,-500.0,0.00022477,2]
[336897952,1725237056629,-500.0,0.00022477,2]
[336897953,1725237056638,-500.0,0.00022477,2]
[336897954,1725237056647,-500.0,0.00022477,2]
[336897955,1725237056655,-500.0,0.00022477,2]
[336897956,1725237056665,-1593.68,0.00022477,2]
[336897957,1725237056673,-500.0,0.00022477,2]
[336897958,1725237056682,-500.0,0.00022477,2]
[336897959,1725237056691,-500.0,0.00022477,2]
[336897960,1725237056700,-500.0,0.00022477,2]
[336897961,1725237056709,-500.0,0.00022477,2]
[336897962,1725237056718,-1077.61,0.00022477,2]
[336897963,1725237056727,-500.0,0.00022477,2]
[336897964,1725237056736,-1040.13,0.00022477,2]
[336897965,1725237056745,-500.0,0.00022477,2]
[336897966,1725237056754,-1083.84,0.00022477,2]
[336897967,1725237056763,-645.86,0.00022477,2]
[336897968,1725237056772,-500.0,0.00022477,2]
[336897969,1725237056781,-1968.08,0.00022477,2]
[336897970,1725237056790,-500.0,0.00022477,2]
[336897971,1725237056800,-500.0,0.00022477,2]
[336897972,1725237056810,-1416.38,0.00022477,2]
[336897973,1725237056819,-500.0,0.00022477,2]
[336897974,1725237056828,-500.0,0.00022477,2]
[336897975,1725237056840,-1257.92,0.00022477,2]
[336897976,1725237056849,-500.0,0.00022477,2]
[336897977,1725237056858,-802.97,0.00022477,2]
[336897978,1725237056867,-1170.05,0.00022477,2]
[336897979,1725237056876,-500.0,0.00022477,2]
[336897980,1725237056886,-500.0,0.00022477,2]
[336897981,1725237056895,-508.61626888,0.00022477,2]
[336897982,1725237056904,-353.30286709,0.00022477,2]
[336897983,1725237056914,-500.0,0.00022477,2]
[336897984,1725237056925,-500.0,0.00022477,2]
[336897985,1725237056936,-1120.74,0.00022477,2]
[336897986,1725237056945,-500.0,0.00022477,2]
[336897987,1725237056955,-500.0,0.00022477,2]
[336897988,1725237056964,-1342.61,0.00022477,2]
[336897989,1725237056973,-510.95927158,0.00022477,2]
[336897990,1725237056983,-500.0,0.00022477,2]
[336897991,1725237056992,-986.49,0.00022477,2]
[336897992,1725237057001,-2440.52,0.00022477,2]
[336897993,1725237057011,-500.0,0.00022477,2]
[336897994,1725237057020,-1019.54,0.00022477,2]
[336897995,1725237057029,-583.32,0.00022477,2]
[336897996,1725237057038,-644.02,0.00022477,2]
[336897997,1725237057047,-246.02987079,0.00022477,2]
[336897998,1725237057057,-500.0,0.00022477,2]
[336897999,1725237057067,-500.0,0.00022477,2]
[336898000,1725237057077,-1107.2,0.00022477,2]
[336898001,1725237057089,-500.0,0.00022477,2]
[336898002,1725237057098,-1789.88,0.00022477,2]
[336898003,1725237057107,-500.0,0.00022477,2]
[336898004,1725237057118,-500.0,0.00022477,2]
[336898005,1725237057127,-500.0,0.00022477,2]
[336898006,1725237057136,-500.0,0.00022477,2]
[336898007,1725237057145,-568.53,0.00022477,2]
[336898008,1725237057154,-624.29,0.00022477,2]
[336898009,1725237057166,-500.0,0.00022477,2]
[336898010,1725237057175,-500.0,0.00022477,2]
[336898011,1725237057184,-500.0,0.00022477,2]
[336898012,1725237057193,-843.43,0.00022477,2]
[336898013,1725237057203,-500.0,0.00022477,2]
[336898014,1725237057212,-500.0,0.00022477,2]
[336898015,1725237057221,-2536.28,0.00022477,2]
[336898016,1725237057231,-500.0,0.00022477,2]
[336898017,1725237057240,-614.06,0.00022477,2]
[336898018,1725237057250,-1097.29,0.00022477,2]
[336898019,1725237057259,-500.0,0.00022477,2]
[336898020,1725237057268,-859.61,0.00022477,2]
[336898021,1725237057277,-500.0,0.00022477,2]
[336898022,1725237057286,-1199.28,0.00022477,2]
[336898023,1725237057295,-500.0,0.00022477,2]
[336898024,1725237057305,-577.97,0.00022477,2]
[336898025,1725237057314,-730.24,0.00022477,2]
[336898026,1725237057323,-1233.68,0.00022477,2]
[336898027,1725237057334,-500.0,0.00022477,2]
[336898028,1725237057344,-1105.373469,0.00022477,7]
[336898029,1725237057353,-1105.373469,0.00022477,7]
[336898030,1725237057362,-1105.373469,0.00022477,7]
[336898031,1725237057371,-151.0,0.00022477,7]
[336898032,1725237057379,-500.0,0.00022477,2]
[336898033,1725237057388,-151.0,0.00022477,7]
[336898034,1725237057397,-637.35,0.00022477,2]
[336898035,1725237057407,-151.0,0.00022477,7]
[336898036,1725237057416,-1105.373469,0.00022477,7]
[336898037,1725237057425,-1105.373469,0.00022477,7]
[336898038,1725237057434,-500.0,0.00022477,2]
[336898039,1725237057444,-500.0,0.00022477,2]
[336898040,1725237057453,-1105.373469,0.00022477,7]
[336898041,1725237057462,-151.0,0.00022477,7]
[336898042,1725237057471,-500.0,0.00022477,2]
[336898043,1725237057480,-151.0,0.00022477,7]
[336898044,1725237057488,-151.0,0.00022477,7]
[336898045,1725237057498,-500.0,0.00022477,2]
[336898046,1725237057507,-566.36,0.00022477,2]
[336898047,1725237057516,-500.0,0.00022477,2]
[336898048,1725237057525,-763.53,0.00022477,2]
[336898049,1725237057534,-500.0,0.00022477,2]
[336898050,1725237057543,-750.8,0.00022477,2]
[336898051,1725237057552,-500.0,0.00022477,2]
[336898052,1725237057561,-615.43,0.00022477,2]
[336898053,1725237057570,-927.91,0.00022477,2]
[336898054,1725237057579,-629.48,0.00022477,2]
[336898055,1725237057589,-1408.28,0.00022477,2]
[336898056,1725237057598,-698.12,0.00022477,2]
[336898057,1725237057607,-500.0,0.00022477,2]
[336898058,1725237057616,-1143.32,0.00022477,2]
[336898059,1725237057625,-533.39,0.00022477,2]
[336898060,1725237057634,-2650.82,0.00022477,2]
[336898061,1725237057643,-605.85,0.00022477,2]
[336898062,1725237057652,-500.0,0.00022477,2]
[336898063,1725237057660,-500.0,0.00022477,2]
[336898064,1725237057670,-500.0,0.00022477,2]
[336898065,1725237057679,-906.1,0.00022477,2]
[336898066,1725237057687,-500.0,0.00022477,2]
[336898067,1725237057697,-500.0,0.00022477,2]
[336898068,1725237057706,-500.0,0.00022477,2]
[336898069,1725237057716,-674.07,0.00022477,2]
[336898070,1725237057725,-603.95,0.00022477,2]
[336898071,1725237057734,-500.0,0.00022477,2]
[336898072,1725237057744,-500.0,0.00022477,2]
[336898073,1725237057753,-500.0,0.00022477,2]
[336898074,1725237057762,-500.0,0.00022477,2]
[336898075,1725237057771,-500.0,0.00022477,2]
[336898076,1725237057781,-212.140768,0.00022477,7]
[336898077,1725237057790,-212.140768,0.00022477,7]
[336898078,1725237057799,-212.140768,0.00022477,7]
[336898079,1725237057808,-500.0,0.00022477,2]
[336898080,1725237057817,-500.0,0.00022477,2]
[336898081,1725237057826,-212.140768,0.00022477,7]
[336898082,1725237057836,-500.0,0.00022477,2]
[336898083,1725237057845,-212.140768,0.00022477,7]
[336898084,1725237057854,-212.140768,0.00022477,7]
[336898085,1725237057863,-500.0,0.00022477,2]
[336898086,1725237057872,-500.0,0.00022477,2]
[336898087,1725237057882,-500.0,0.00022477,2]
[336898088,1725237057890,-1019.97,0.00022477,2]
[336898089,1725237057899,-1599.3,0.00022477,2]
[336898090,1725237057908,-1263.1,0.00022477,2]
[336898091,1725237057917,-1059.64,0.00022477,2]
[336898092,1725237057926,-500.0,0.00022477,2]
[336898093,1725237057935,-1584.46,0.00022477,2]
[336898094,1725237057944,-500.0,0.00022477,2]
[336898095,1725237057954,-500.0,0.00022477,2]
[336898096,1725237057963,-532.68,0.00022477,2]
[336898097,1725237057971,-500.0,0.00022477,2]
[336898098,1725237057981,-500.0,0.00022477,2]
[336898099,1725237057990,-887.98,0.00022477,2]
[336898100,1725237057999,-844.29,0.00022477,2]
[336898101,1725237058008,-500.0,0.00022477,2]
[336898102,1725237058018,-500.0,0.00022477,2]
[336898103,1725237058028,-500.0,0.00022477,2]
[336898104,1725237058040,-500.0,0.00022477,2]
[336898105,1725237058050,-533.24,0.00022477,2]
[336898106,1725237058059,-1441.16,0.00022477,2]
[336898107,1725237058069,-1324.3,0.00022477,2]
[336898108,1725237058078,-594.72591286,0.00022477,2]
[336898109,1725237058088,-500.0,0.00022477,2]
[336898110,1725237058097,-1521.75,0.00022477,2]
[336898111,1725237058106,-1061.38,0.00022477,2]